bitfinex/quotes_ETHUSD_20250322
["timestamp","ask_amount","ask_price","bid_price","bid_amount"]
[1742664230241,0.11917919,1992.5,1992.4,4.70418856]
[1742664230454,7.57823274,1992.7,1992.4,4.70418856]
[1742664230973,0.11947704,1992.6,1992.4,4.70418856]
[1742664231263,0.11947704,1992.6,1992.5,26.533]
[1742664232457,8.36572274,1992.9,1992.5,26.533]
[1742664232648,0.11972698,1992.6,1992.5,26.533]
[1742664232845,2.55991274,1992.8,1992.5,26.533]
[1742664233018,0.11972698,1992.6,1992.5,26.533]
[1742664233219,2.55991274,1992.8,1992.5,26.533]
[1742664233722,0.1200248,1992.7,1992.5,26.533]
[1742664235555,2.55991274,1992.8,1992.5,26.533]
[1742664235761,0.11977385,1992.6,1992.5,26.533]
[1742664235957,3.34781274,1992.9,1992.5,26.533]
[1742664236161,0.7816,1993.1,1992.7,2.55991274]
[1742664236362,3.34151274,1993.3,1992.9,5.0177]
[1742664236675,0.7816,1993.3,1993.0,2.55991274]
[1742664236825,5.01663,1993.4,1993.1,2.55991274]
[1742664237156,7.57654274,1993.4,1993.2,4.654]
[1742664243939,5.01631,1993.5,1993.2,4.654]
[1742664244144,11.35744274,1993.7,1993.3,26.527]
[1742664244367,2.55991274,1993.6,1993.3,26.527]
[1742664244978,6.34151274,1993.7,1993.3,26.527]
[1742664245181,11.35735274,1993.7,1993.4,1.43700924]
[1742664245336,2.55991274,1993.6,1993.4,1.43700924]
[1742664245844,14.49686274,1993.9,1993.4,4.04708163]
[1742664246043,7.57557274,1993.8,1993.4,1.43700924]
[1742664246593,0.7816,1993.9,1993.5,2.55991274]
[1742664246768,0.7816,1993.9,1993.6,4.95914514]
[1742664247375,0.7816,1993.9,1993.6,4.70315387]
[1742664247566,2.55991274,1994.0,1993.6,4.70315387]
[1742664247740,3.35151274,1994.1,1993.6,4.70315387]
[1742664247941,3.35151274,1994.1,1993.6,9.71910387]
[1742664248150,2.55991274,1994.0,1993.6,9.71910387]
[1742664248387,0.7916,1994.1,1993.6,9.71910387]
[1742664248569,3.35151274,1994.1,1993.6,9.71899387]
[1742664248872,0.01,1994.1,1993.7,5.01565]
[1742664249080,0.01,1994.1,1993.8,0.05014683]
[1742664249373,0.01,1994.1,1993.8,5.06556683]
[1742664249554,0.01,1994.1,1993.8,6.07853968]
[1742664250683,0.01,1994.1,1993.9,0.0501448]
[1742664250872,0.01,1994.1,1994.0,4.657]
[1742664251588,0.13864674,1994.1,1994.0,9.67204]
[1742664252056,0.13864674,1994.1,1994.0,9.7221823]
[1742664252257,0.13864674,1994.1,1994.0,10.82248109]
[1742664252453,0.13864674,1994.1,1994.0,10.77233879]
[1742664252659,0.13864674,1994.1,1994.0,5.75729879]
[1742664252865,0.13864674,1994.1,1994.0,5.80744112]
[1742664253784,0.13864674,1994.1,1994.0,10.82248112]
[1742664253972,0.13864674,1994.1,1994.0,10.77233879]
[1742664255289,0.13864674,1994.1,1994.0,11.32233879]
[1742664256096,0.13864674,1994.1,1994.0,37.83933879]
[1742664256661,0.01,1994.1,1994.0,37.83933879]
[1742664257496,0.01,1994.1,1994.0,40.83933879]
[1742664258996,0.01,1994.1,1994.0,45.46939172]
[1742664259164,0.01,1994.1,1994.0,45.93218068]
[1742664259366,0.01,1994.1,1994.0,46.95983]
[1742664259994,0.1185334,1994.8,1994.6,5.01341]
[1742664260291,0.1185334,1994.8,1994.4,5.01387]
[1742664260292,0.1185334,1994.8,1994.7,5.20946872]
[1742664262194,0.1185334,1994.8,1994.7,5.159341]
[1742664262505,5.1315634,1994.8,1994.7,4.658]
[1742664262686,0.1185334,1994.8,1994.7,4.658]
[1742664266292,0.25458054,1994.8,1994.7,4.658]
[1742664267086,0.25458054,1994.8,1994.7,31.166]
[1742664272298,0.25458054,1994.8,1994.7,31.716]
[1742664272502,0.25458054,1994.8,1994.7,37.79239968]
[1742664272881,0.1185334,1994.8,1994.7,37.79239968]
[1742664273474,3.4e-06,1994.8,1994.7,42.04875739]
[1742664273678,3.4e-06,1994.8,1994.7,48.04875739]
[1742664273898,3.4e-06,1994.8,1994.7,50.86169712]
[1742664274683,3.4e-06,1994.8,1994.7,52.84554301]
[1742664274881,0.00081174,1995.3,1995.2,5.01202]
[1742664275082,0.00081174,1995.3,1995.2,11.231441]
[1742664275287,0.11543283,1995.3,1995.2,11.231441]
[1742664275473,0.11462109,1995.3,1995.2,11.23063782]
[1742664275679,0.11462109,1995.3,1995.2,12.19537855]
[1742664275878,0.11462109,1995.3,1995.2,14.32796967]
[1742664276075,0.11462109,1995.3,1995.2,15.5336912]
[1742664276411,0.11462109,1995.3,1995.2,8.97005338]
[1742664276613,10.05609771,1995.4,1995.2,4.30305338]
[1742664276908,10.05609771,1995.4,1995.3,5.13061208]
[1742664277512,5.04455771,1995.4,1995.3,5.13061208]
[1742664278313,0.01,1995.4,1995.3,5.13061208]
[1742664278511,0.01,1995.4,1995.3,5.87316139]
[1742664279812,0.01,1995.4,1995.3,6.24444731]
[1742664280410,0.01,1995.4,1995.3,5.87316139]
[1742664280917,0.01,1995.4,1995.3,6.33733825]
[1742664281115,0.1261021,1995.4,1995.3,6.33733825]
[1742664281610,0.1261021,1995.4,1995.3,13.0202406]
[1742664281809,0.1261021,1995.4,1995.3,8.0084706]
[1742664282016,0.1261021,1995.4,1995.3,8.37983322]
[1742664282611,4.38245981,1995.4,1995.3,3.71283322]
[1742664282818,10.83450979,1995.4,1995.3,8.37883322]
[1742664282987,10.83450979,1995.4,1995.3,6.70770087]
[1742664283187,9.39397981,1995.4,1995.3,6.70770087]
[1742664283524,9.39397981,1995.4,1995.3,33.20470087]
[1742664283829,9.39397981,1995.4,1995.3,32.83333825]
[1742664284818,0.1261021,1995.4,1995.3,34.13374942]
[1742664285518,0.1261021,1995.4,1995.3,33.9479545]
[1742664286136,0.1261021,1995.4,1995.3,33.20490754]
[1742664288737,0.1261021,1995.4,1995.3,32.83333825]
[1742664289330,0.1261021,1995.4,1995.3,31.62717686]
[1742664289534,10.14727981,1995.4,1995.3,31.62717686]
[1742664289716,11.66313579,1995.4,1995.3,31.163]
[1742664294454,11.66313579,1995.4,1995.3,26.497]
[1742664294910,14.66313579,1995.4,1995.3,26.497]
[1742664298621,9.65347808,1995.4,1995.3,26.497]
[1742664298846,14.66733579,1995.4,1995.3,26.497]
[1742664300432,18.9236935,1995.4,1995.3,26.497]
[1742664300646,14.66733579,1995.4,1995.3,26.497]
[1742664300829,5.01323,1994.8,1994.7,26.498]
[1742664301166,9.38192672,1994.8,1994.7,31.177]
[1742664303256,14.64157116,1994.8,1994.7,26.498]
[1742664303429,14.57890639,1994.8,1994.7,26.498]
[1742664305134,5.12556901,1994.8,1994.7,26.498]
[1742664305331,9.38192672,1994.8,1994.7,26.498]
[1742664305744,10.13942672,1994.8,1994.7,26.498]
[1742664309536,13.13942672,1994.8,1994.7,26.498]
[1742664316278,19.27942672,1994.8,1994.7,26.498]
[1742664316580,21.70865639,1994.8,1994.7,26.498]
[1742664316740,5.01481,1994.1,1993.8,0.55]
[1742664316940,9.27091771,1994.2,1993.9,31.187]
[1742664317292,5.01456,1994.2,1993.9,36.20229]
[1742664317452,5.01482,1994.1,1993.9,31.187]
[1742664317795,5.11464624,1994.1,1993.9,31.187]
[1742664318677,5.01504,1994.0,1993.9,31.187]
[1742664318877,5.11411679,1994.0,1993.9,31.187]
[1742664320044,0.09907679,1994.0,1993.9,31.187]
[1742664321154,0.09907679,1994.0,1993.9,31.737]
[1742664321539,9.27090771,1994.2,1993.9,36.75229]
[1742664321782,0.09907679,1994.0,1993.9,36.75229]
[1742664321967,9.27090771,1994.2,1993.9,31.737]
[1742664322180,0.09907679,1994.0,1993.9,31.737]
[1742664322346,9.27090771,1994.2,1993.9,31.737]
[1742664322549,0.09907679,1994.0,1993.9,31.737]
[1742664322747,9.27090771,1994.2,1993.9,31.737]
[1742664323063,14.28562771,1994.2,1993.9,31.737]
[1742664323263,0.09937411,1994.1,1993.9,31.737]
[1742664323465,14.28562771,1994.2,1993.9,31.737]
[1742664323660,0.09786012,1994.0,1993.9,31.737]
[1742664323978,5.01423,1994.4,1994.0,0.55]
[1742664324280,5.01429,1994.3,1994.0,0.55]
[1742664324483,10.0288,1994.3,1994.0,0.55]
[1742664324870,5.01429,1994.3,1994.0,0.55]
[1742664325787,9.27064771,1994.3,1994.0,0.55]
[1742664326088,0.09779917,1994.2,1994.0,0.55]
[1742664326674,5.11237917,1994.2,1993.9,31.187]
[1742664326879,14.38351688,1994.2,1993.9,31.187]
[1742664327287,0.09779917,1994.2,1994.0,0.60014351]
[1742664327462,0.09779917,1994.2,1994.0,0.55]
[1742664327763,5.11234917,1994.2,1994.0,0.55]
[1742664327963,5.11234917,1994.2,1994.1,26.51]
[1742664335692,0.09779917,1994.2,1994.1,26.51]
[1742664335892,9.27040771,1994.4,1994.1,26.51]
[1742664336203,14.28460771,1994.4,1994.2,0.05013994]
[1742664336372,14.28460771,1994.4,1994.3,4.672]
[1742664337581,14.28460771,1994.4,1994.3,31.182]
[1742664341100,14.38306378,1994.4,1994.3,31.182]
[1742664347126,12.68000063,1994.4,1994.3,31.182]
[1742664347611,12.68000063,1994.4,1994.3,33.23893791]
[1742664348110,12.68000063,1994.4,1994.3,32.49106484]
[1742664348286,12.68000063,1994.4,1994.3,32.11684118]
[1742664348605,12.68000063,1994.4,1994.3,31.64942067]
[1742664348908,12.68000063,1994.4,1994.3,31.182]
[1742664349608,12.68000063,1994.4,1994.3,31.64785951]
[1742664350112,12.68000063,1994.4,1994.3,31.182]
[1742664358287,12.58154456,1994.4,1994.3,31.182]
[1742664365194,7.56734456,1994.4,1994.3,31.182]
[1742664366536,7.56616456,1994.9,1994.4,5.01394]
[1742664366828,7.56584456,1995.0,1994.6,5.01329]
[1742664367016,7.56584456,1995.0,1994.7,4.70712812]
[1742664367400,5.01288,1994.9,1994.7,4.70712812]
[1742664367594,7.56617456,1994.9,1994.7,4.657]
[1742664368826,12.57908456,1994.9,1994.7,4.657]
[1742664369022,7.56617456,1994.9,1994.7,4.657]
[1742664369227,2.55329456,1994.8,1994.7,4.657]
[1742664369423,7.56632456,1994.8,1994.7,4.657]
[1742664370133,2.55329456,1994.8,1994.7,4.657]
[1742664371423,7.56617456,1994.9,1994.7,4.657]
[1742664371631,2.55329456,1994.8,1994.7,4.657]
[1742664372529,7.56617456,1994.9,1994.7,4.657]
[1742664373530,12.57916456,1994.9,1994.7,4.657]
[1742664373735,7.56617456,1994.9,1994.7,4.657]
[1742664374030,12.57913456,1994.9,1994.7,4.657]
[1742664374230,5.01303,1994.8,1994.7,4.657]
[1742664374808,7.56632456,1994.8,1994.7,4.657]
[1742664375516,7.56632456,1994.8,1994.7,31.163]
[1742664376808,5.01303,1994.8,1994.7,31.163]
[1742664377237,7.56617456,1994.9,1994.7,31.163]
[1742664377537,12.57915456,1994.9,1994.7,31.163]
[1742664378215,7.56617456,1994.9,1994.7,31.163]
[1742664378829,12.57914456,1994.9,1994.7,31.163]
[1742664379355,5.01303,1994.8,1994.7,31.163]
[1742664379561,7.56632456,1994.8,1994.7,31.163]
[1742664380111,8.34592456,1994.8,1994.7,31.163]
[1742664380415,8.34592456,1994.8,1994.7,31.162]
[1742664381406,8.34544456,1995.0,1994.7,31.162]
[1742664381611,7.56584456,1995.0,1994.7,31.162]
[1742664381805,2.55329456,1995.0,1994.7,36.17526]
[1742664382315,7.56591456,1995.0,1994.8,0.05012544]
[1742664382512,12.57865456,1995.0,1994.7,31.162]
[1742664382820,7.56591456,1995.0,1994.7,31.162]
[1742664383306,12.57865456,1995.0,1994.7,31.162]
[1742664383505,7.56591456,1995.0,1994.7,31.162]
[1742664383710,2.55329456,1994.9,1994.7,31.162]
[1742664383909,2.55329456,1994.8,1994.7,31.162]
[1742664384436,7.56626456,1994.9,1994.7,31.162]
[1742664389954,7.56626456,1994.9,1994.8,26.503]
[1742664408054,7.56626456,1994.9,1994.8,27.71619053]
[1742664408362,7.56626456,1994.9,1994.8,30.833126]
[1742664408587,7.56626456,1994.9,1994.8,29.89990192]
[1742664409780,7.56626456,1994.9,1994.8,29.15332313]
[1742664409980,7.56626456,1994.9,1994.8,28.55608]
[1742664411099,7.56626456,1994.9,1994.8,27.34288869]
[1742664411292,7.56626456,1994.9,1994.8,26.96961174]
[1742664411494,7.56626456,1994.9,1994.8,26.503]
[1742664414498,5.01297,1994.9,1994.8,26.503]
[1742664414696,8.34542456,1995.0,1994.8,26.503]
[1742664416474,13.35817456,1995.0,1994.8,26.503]
[1742664417378,2.55329456,1994.9,1994.8,26.503]
[1742664419522,7.56607456,1994.9,1994.8,26.503]
[1742664421190,9.8630789,1994.9,1994.8,26.503]
[1742664422212,12.92574459,1994.9,1994.8,26.503]
[1742664422412,12.8630789,1994.9,1994.8,26.503]
[1742664425790,5.01328,1994.7,1994.6,4.65]
[1742664425987,7.56657456,1994.7,1994.6,4.65]
[1742664428524,7.62924437,1994.7,1994.6,4.65]
[1742664428720,7.56657456,1994.7,1994.6,4.65]
[1742664429422,8.40324437,1994.7,1994.6,4.65]
[1742664429727,8.40324436,1994.7,1994.6,4.65]
[1742664430019,8.34057456,1994.7,1994.6,4.65]
[1742664433143,8.80980383,1994.7,1994.6,4.65]
[1742664433743,8.8724736,1994.7,1994.6,4.65]
[1742664434138,9.72025332,1994.7,1994.6,4.65]
[1742664434642,9.65758355,1994.7,1994.6,4.65]
[1742664434812,8.80980383,1994.7,1994.6,4.65]
[1742664437239,5.48250927,1994.7,1994.6,4.65]
[1742664437440,8.03580383,1994.7,1994.6,4.65]
[1742664438338,5.01328,1994.7,1994.6,4.65]
[1742664438642,5.01278,1994.9,1994.6,4.65]
[1742664438949,7.56607456,1994.9,1994.6,4.65]
[1742664439445,5.01318,1994.8,1994.6,4.65]
[1742664439631,7.56647456,1994.8,1994.6,4.65]
[1742664440026,12.57972456,1994.8,1994.6,4.65]
[1742664440224,12.57972456,1994.8,1994.7,26.506]
[1742664442244,7.56647456,1994.8,1994.7,26.506]
[1742664442443,5.01318,1994.8,1994.7,26.506]
[1742664442651,5.01278,1994.9,1994.7,26.506]
[1742664443048,7.56607456,1994.9,1994.7,26.506]
[1742664443654,12.57904456,1994.9,1994.7,26.506]
[1742664444149,7.56607456,1994.9,1994.7,26.506]
[1742664444547,5.01303,1994.8,1994.7,26.506]
[1742664445260,7.56612456,1994.9,1994.7,26.506]
[1742664445758,5.01303,1994.8,1994.7,26.506]
[1742664446222,7.56632456,1994.8,1994.7,26.506]
[1742664446417,5.01303,1994.8,1994.7,26.506]
[1742664449255,7.56632456,1994.8,1994.7,26.506]
[1742664451459,7.56612456,1994.9,1994.7,26.506]
[1742664452652,12.57909456,1994.9,1994.7,26.506]
[1742664453265,5.01303,1994.8,1994.7,26.506]
[1742664455733,7.56632456,1994.8,1994.7,26.506]
[1742664458469,7.56612456,1994.9,1994.7,26.506]
[1742664462669,5.01303,1994.8,1994.7,26.506]
[1742664462872,7.56612456,1994.9,1994.7,26.506]
[1742664463169,12.57907456,1994.9,1994.7,26.506]
[1742664463549,7.56632456,1994.8,1994.7,26.506]
[1742664463849,7.56632456,1994.8,1994.7,31.155]
[1742664465176,7.56614456,1994.9,1994.7,31.155]
[1742664465861,5.01285,1994.9,1994.7,31.155]
[1742664466270,7.56614456,1994.9,1994.7,31.155]
[1742664468462,8.33859456,1995.1,1994.7,31.155]
[1742664468871,2.55329456,1995.0,1994.7,31.155]
[1742664469401,7.56587456,1995.0,1994.7,31.155]
[1742664469913,2.55329456,1994.9,1994.7,31.155]
[1742664472566,7.56587456,1995.0,1994.7,31.155]
[1742664473488,2.55329456,1994.9,1994.7,26.506]
[1742664473694,7.56609456,1994.9,1994.8,31.152]
[1742664473884,7.56609456,1994.9,1994.8,26.503]
[1742664475095,8.39225725,1994.9,1994.8,31.152]
[1742664475295,9.98807043,1994.9,1994.8,31.152]
[1742664475795,9.98807074,1994.9,1994.8,31.152]
[1742664476210,9.92540774,1994.9,1994.8,31.152]
[1742664477315,8.32959456,1994.9,1994.8,31.152]
[1742664479814,8.39225757,1994.9,1994.8,31.152]
[1742664480010,8.32959456,1994.9,1994.8,31.152]
[1742664480211,8.32959456,1994.9,1994.8,26.503]
[1742664482786,7.56609456,1994.9,1994.8,26.503]
[1742664491529,8.38609456,1994.9,1994.8,26.503]
[1742664492225,8.44875748,1994.9,1994.8,26.503]
[1742664492929,8.38609456,1994.9,1994.8,26.503]
[1742664494037,8.44875748,1994.9,1994.8,26.503]
[1742664494237,8.38609456,1994.9,1994.8,26.503]
[1742664498135,8.44875746,1994.9,1994.8,26.503]
[1742664498304,8.38609456,1994.9,1994.8,26.503]
[1742664498632,8.44875744,1994.9,1994.8,26.503]
[1742664498834,5.01303,1994.8,1994.7,31.153]
[1742664507162,7.56632456,1994.8,1994.7,31.153]
[1742664508148,7.62898929,1994.8,1994.7,31.153]
[1742664508327,7.56632456,1994.8,1994.7,31.153]
[1742664510533,5.01303,1994.8,1994.7,31.153]
[1742664510742,7.56612456,1994.9,1994.7,31.153]
[1742664511131,12.57908456,1994.9,1994.7,31.153]
[1742664512245,7.56612456,1994.9,1994.7,31.153]
[1742664512548,12.57910456,1994.9,1994.7,31.153]
[1742664512753,7.56612456,1994.9,1994.7,31.153]
[1742664513361,12.57909456,1994.9,1994.7,31.153]
[1742664513581,7.56612456,1994.9,1994.7,31.153]
[1742664514042,5.01303,1994.8,1994.7,31.153]
[1742664514765,7.56632456,1994.8,1994.7,26.504]
[1742664514971,8.82424002,1994.8,1994.7,31.153]
[1742664515279,8.88690456,1994.8,1994.7,31.153]
[1742664515467,8.88690456,1994.8,1994.7,26.504]
[1742664515770,9.63774002,1994.8,1994.7,26.504]
[1742664521399,9.70040813,1994.8,1994.7,26.504]
[1742664522765,5.01328,1994.7,1994.6,4.649]
[1742664522956,9.03167656,1994.7,1994.6,4.649]
[1742664523781,9.09434762,1994.7,1994.6,4.649]
[1742664527083,9.03167656,1994.7,1994.6,4.649]
[1742664527952,5.01378,1994.5,1994.4,26.506]
[1742664528152,7.56707456,1994.5,1994.4,31.155]
[1742664542105,7.56707456,1994.5,1994.4,4.649]
[1742664545903,2.55329456,1994.7,1994.4,4.649]
[1742664546075,7.56659456,1994.7,1994.4,0.05013481]
[1742664546274,7.56659456,1994.7,1994.5,4.648]
[1742664546710,7.56637456,1994.8,1994.5,4.648]
[1742664548010,2.55329456,1994.7,1994.5,4.648]
[1742664548209,2.55329456,1994.6,1994.5,4.648]
[1742664551529,2.55329456,1994.6,1994.5,31.155]
[1742664553722,7.56682456,1994.6,1994.5,31.155]
[1742664557516,5.01353,1994.6,1994.5,31.155]
[1742664557719,7.56682456,1994.6,1994.5,31.155]
[1742664558915,8.33383473,1994.6,1994.5,31.155]
[1742664560302,8.39650833,1994.6,1994.5,31.155]
[1742664560496,8.33383473,1994.6,1994.5,31.155]
[1742664565926,8.33383473,1994.6,1994.5,4.648]
[1742664566309,8.39650828,1994.6,1994.5,4.648]
[1742664566711,8.33383473,1994.6,1994.5,4.648]
[1742664570937,8.39650835,1994.6,1994.5,4.648]
[1742664572735,8.39650835,1994.6,1994.3,26.507]
[1742664572736,5.01403,1994.4,1994.3,31.155]
[1742664572949,10.12061912,1994.4,1994.3,31.155]
[1742664573129,10.93951912,1994.4,1994.3,26.507]
[1742664573529,13.93951912,1994.4,1994.3,26.507]
[1742664585152,5.01454,1994.2,1994.1,4.648]
[1742664585355,7.56783456,1994.2,1994.1,4.648]
[1742664586052,8.82605502,1994.2,1994.1,4.648]
[1742664586354,8.88874175,1994.2,1994.1,4.648]
[1742664587052,8.82605502,1994.2,1994.1,4.648]
[1742664589973,5.01504,1994.0,1993.9,26.511]
[1742664590131,7.56833456,1994.0,1993.9,31.159]
[1742664591372,7.56833456,1994.0,1993.9,26.511]
[1742664591732,7.56833456,1994.0,1993.9,31.159]
[1742664593639,2.55329456,1994.0,1993.9,31.159]
[1742664599694,2.55329456,1994.0,1993.9,26.511]
[1742664599988,7.56833456,1994.0,1993.9,31.159]
[1742664603991,2.55329456,1994.1,1993.9,31.159]
[1742664604981,5.01361,1994.6,1994.2,5.01453]
[1742664605266,7.56712456,1994.5,1994.3,4.648]
[1742664605483,2.55329456,1994.4,1994.2,0.05013951]
[1742664605789,2.55329456,1994.4,1994.3,4.648]
[1742664605994,7.56732456,1994.4,1994.3,4.648]
[1742664606295,2.55329456,1994.4,1994.3,4.648]
[1742664606996,7.56732456,1994.4,1994.3,4.648]
[1742664608994,8.36792456,1994.4,1994.2,0.05013951]
[1742664609197,5.01504,1994.0,1993.9,31.159]
[1742664609393,7.56833456,1994.0,1993.9,31.159]
[1742664609602,7.63102297,1994.0,1993.9,26.511]
[1742664609765,14.52896783,1994.0,1993.9,26.511]
[1742664609971,15.26687942,1994.0,1993.9,26.511]
[1742664611070,14.41985279,1994.0,1993.9,26.511]
[1742664613778,20.55985279,1994.0,1993.9,26.511]
[1742664614182,5.01654,1993.5,1993.3,26.514]
[1742664614364,9.27611249,1993.4,1993.3,26.514]
[1742664614563,9.27611249,1993.4,1993.3,31.162]
[1742664615386,9.33882204,1993.4,1993.3,31.162]
[1742664616297,9.27611249,1993.4,1993.3,31.162]
[1742664618899,9.33882249,1993.4,1993.3,31.162]
[1742664621468,9.27611249,1993.4,1993.3,31.162]
[1742664623401,9.33882246,1993.4,1993.3,31.162]
[1742664623572,10.12332246,1993.4,1993.3,31.162]
[1742664625200,9.33882246,1993.4,1993.3,31.162]
[1742664625404,9.27611249,1993.4,1993.3,31.162]
[1742664627510,9.27611249,1993.4,1993.3,4.648]
[1742664632585,9.33882245,1993.4,1993.3,4.648]
[1742664633113,7.63562279,1993.4,1993.3,4.648]
[1742664636609,7.57291283,1993.4,1993.3,4.648]
[1742664638221,5.01654,1993.5,1993.3,4.648]
[1742664638420,7.57231283,1993.7,1993.3,9.7148441]
[1742664638603,2.55636283,1993.6,1993.3,4.6981641]
[1742664639192,5.01611,1993.6,1993.3,4.6981641]
[1742664639519,9.27476061,1993.7,1993.3,9.7149141]
[1742664639723,5.01595,1993.7,1993.4,0.97149141]
[1742664641122,5.01595,1993.7,1993.4,1.02165097]
[1742664642023,15.41436061,1993.8,1993.4,0.97149141]
[1742664642606,5.01581,1993.7,1993.4,0.97149141]
[1742664644325,9.27436061,1993.8,1993.4,0.97149141]
[1742664644520,10.03129,1993.8,1993.4,0.97149141]
[1742664644724,5.01555,1993.8,1993.4,0.97149141]
[1742664644927,5.01555,1993.8,1993.4,5.98800141]
[1742664645295,5.01555,1993.8,1993.5,0.59880014]
[1742664645796,5.01555,1993.8,1993.4,0.97149141]
[1742664646739,5.0158,1993.7,1993.4,0.97149141]
[1742664646919,9.27413061,1993.9,1993.4,5.98795141]
[1742664647123,5.01466,1994.2,1993.5,4.80881061]
[1742664647306,5.01484,1994.1,1993.7,5.01568]
[1742664647515,5.01484,1994.1,1993.8,4.649]
[1742664649227,5.01484,1994.1,1993.8,4.69914982]
[1742664649627,5.01484,1994.1,1993.8,4.649]
[1742664649855,10.02983,1994.1,1993.8,4.649]
[1742664650041,9.14,1994.5,1993.9,6.03011]
[1742664650042,10.02886,1994.3,1993.9,6.03011]
[1742664650216,5.01439,1994.3,1994.0,26.518]
[1742664654257,9.27320061,1994.3,1994.0,26.518]
[1742664656665,14.28767061,1994.3,1994.0,26.518]
[1742664657390,5.01463,1994.2,1994.0,26.518]
[1742664663170,7.56846437,1994.2,1994.0,26.518]
[1742664666084,5.01463,1994.2,1994.0,26.518]
[1742664666483,7.56846437,1994.2,1994.0,26.518]
[1742664667505,7.56846437,1994.2,1994.1,26.513]
[1742664668010,3.0,1994.5,1994.1,26.513]
[1742664668011,5.0139,1994.5,1994.1,30.28447178]
[1742664668169,5.0139,1994.5,1994.2,4.69713948]
[1742664668509,7.56773437,1994.5,1994.2,4.69713948]
[1742664669181,12.58170437,1994.5,1994.2,4.69713948]
[1742664670306,7.56773437,1994.5,1994.2,4.69713948]
[1742664670508,5.01382,1994.5,1994.3,0.46971395]
[1742664673720,8.82863,1994.8,1994.4,5.01402]
[1742664674021,10.56699437,1994.8,1994.4,0.55]
[1742664674320,15.58021437,1994.8,1994.4,0.55]
[1742664674525,7.56699437,1994.8,1994.4,5.56403]
[1742664674685,7.56699437,1994.8,1994.5,0.556403]
[1742664674884,7.56698437,1994.8,1994.6,4.647]
[1742664677129,5.01315,1994.8,1994.6,31.156]
[1742664677285,10.02638,1994.8,1994.6,31.156]
[1742664678742,5.01328,1994.7,1994.6,31.156]
[1742664680337,10.13329601,1994.7,1994.6,31.155]
[1742664680507,11.64794061,1994.7,1994.6,31.155]
[1742664680706,11.58527366,1994.7,1994.6,31.155]
[1742664682037,11.58527366,1994.7,1994.6,4.646]
[1742664682428,10.05962906,1994.7,1994.6,4.646]
[1742664687312,9.25602906,1994.7,1994.6,4.646]
[1742664692931,5.00228,1994.7,1994.6,4.646]
[1742664699257,7.55464522,1994.7,1994.6,4.646]
[1742664699455,5.00228,1994.7,1994.6,4.646]
[1742664699838,7.55464522,1994.7,1994.6,4.646]
[1742664701461,5.00228,1994.7,1994.6,4.646]
[1742664704469,5.01353,1994.6,1994.5,26.507]
[1742664704768,7.56589522,1994.6,1994.5,31.153]
[1742664705866,7.56589522,1994.6,1994.5,4.646]
[1742664707175,12.57966522,1994.6,1994.4,26.506]
[1742664707374,12.57966522,1994.6,1994.5,4.645]
[1742664709167,12.57966522,1994.6,1994.4,26.506]
[1742664709370,12.57966522,1994.6,1994.5,4.645]
[1742664709588,5.01378,1994.5,1994.4,26.506]
[1742664709771,7.56614522,1994.5,1994.4,26.506]
[1742664710072,5.01378,1994.5,1994.4,31.151]
[1742664710440,5.01329,1994.7,1994.4,31.151]
[1742664710646,7.56540522,1994.8,1994.5,0.05013327]
[1742664710858,5.01312,1994.8,1994.5,5.01364]
[1742664711457,5.01312,1994.8,1994.4,36.16496]
[1742664714951,12.57872522,1994.8,1994.4,36.16496]
[1742664715483,10.02636,1994.8,1994.4,38.71732522]
[1742664715781,5.01312,1994.8,1994.4,38.71732522]
[1742664716075,5.01312,1994.8,1994.4,36.16496]
[1742664716384,12.57871522,1994.8,1994.4,36.16496]
[1742664717786,5.01312,1994.8,1994.4,36.16496]
[1742664717953,5.01312,1994.8,1994.4,41.17887]
[1742664718148,5.01312,1994.8,1994.4,41.1788]
[1742664718352,5.01312,1994.8,1994.4,36.16489]
[1742664718583,7.56548522,1994.8,1994.4,36.16489]
[1742664718881,5.01312,1994.8,1994.4,38.71725522]
[1742664720483,5.79497,1994.9,1994.5,3.15249551]
[1742664720781,5.79497,1994.9,1994.5,8.11613522]
[1742664721485,8.34733522,1994.9,1994.5,5.56377]
[1742664723375,3.33446522,1994.9,1994.5,5.56368]
[1742664725080,3.33446522,1994.9,1994.6,26.504]
[1742664734407,0.7735,1995.1,1994.7,5.56312]
[1742664734606,6.01570526,1995.3,1994.7,5.56312]
[1742664734607,0.7735,1995.3,1994.9,7.56497522]
[1742664734770,3.32586522,1995.3,1994.9,5.01261]
[1742664735165,3.32586522,1995.3,1995.0,5.06263849]
[1742664735394,3.32586522,1995.3,1995.0,6.07016334]
[1742664735565,3.32586522,1995.3,1995.0,1.05764334]
[1742664736467,3.32586522,1995.3,1995.0,1.00752485]
[1742664736662,3.32586522,1995.3,1995.0,0.05011849]
[1742664738295,8.33767522,1995.3,1995.0,0.05011849]
[1742664738663,8.33767522,1995.3,1994.9,5.01272]
[1742664738868,5.02157,1995.4,1995.0,5.01229]
[1742664739069,7.57393522,1995.4,1995.0,5.01229]
[1742664739369,7.57393522,1995.4,1995.1,0.501229]
[1742664739711,7.57393522,1995.4,1995.2,4.644]
[1742664740797,2.55236522,1995.3,1995.2,4.644]
[1742664740980,8.33763522,1995.3,1995.2,4.644]
[1742664745975,5.01202,1995.2,1995.1,26.499]
[1742664746193,7.56438522,1995.2,1995.1,31.143]
[1742664747302,9.71425074,1995.2,1995.1,31.143]
[1742664747797,5.01202,1995.2,1995.1,31.143]
[1742664748012,7.56419522,1995.3,1995.1,31.143]
[1742664748383,12.57614522,1995.3,1995.1,31.143]
[1742664749074,2.55236522,1995.2,1995.1,31.143]